bitfinex/quotes_ETHUSD_20240731
["timestamp","ask_amount","ask_price","bid_price","bid_amount"]
[1722456522596,0.855931,3268.7,3267.5,3.06038]
[1722456522812,3.915321,3268.7,3267.4,3.06053]
[1722456523024,0.855931,3268.7,3267.4,3.06049]
[1722456523230,3.05952,3268.5,3267.4,3.06049]
[1722456523936,3.915321,3268.7,3267.5,3.06043]
[1722456524140,0.855931,3268.7,3266.9,10.29]
[1722456524435,9.757,3269.3,3268.1,3.05981]
[1722456524436,3.0,3269.0,3268.1,3.05981]
[1722456524639,3.0,3269.2,3268.0,0.06119447]
[1722456524842,2.287,3269.3,3268.5,3.05942]
[1722456525042,3.4673744,3269.7,3268.6,3.05934]
[1722456525043,0.4089344,3269.7,3268.6,3.05934]
[1722456525242,0.4089344,3269.7,3268.9,3.05907]
[1722456525602,7.47,3269.8,3269.0,3.05903]
[1722456525804,7.47,3269.8,3269.0,3.05898]
[1722456526046,7.47,3269.8,3269.1,3.05894]
[1722456526244,7.47,3270.4,3269.1,3.12007359]
[1722456526461,7.47,3270.4,3269.4,3.05866]
[1722456526659,1.281779,3270.3,3269.4,3.119827]
[1722456526964,1.281779,3270.3,3269.4,3.119817]
[1722456527125,1.281779,3270.3,3269.4,0.061167]
[1722456527315,4.339619,3270.3,3268.9,5.42659]
[1722456527514,4.339619,3270.3,3269.1,3.0589]
[1722456527719,3.05817,3270.0,3268.6,3.671302]
[1722456528062,3.05817,3270.0,3268.8,3.05916]
[1722456528221,0.55,3269.9,3268.9,3.05912]
[1722456528932,3.60828,3269.9,3268.7,3.05931]
[1722456529450,0.55,3269.9,3268.8,3.05919]
[1722456529617,0.55,3269.9,3268.9,3.05911]
[1722456529819,0.55,3269.9,3269.2,3.05885]
[1722456530081,4.1809619,3270.2,3269.2,3.05885]
[1722456530082,0.55,3270.1,3269.2,3.05885]
[1722456530222,3.0,3270.2,3269.3,3.05875]
[1722456530422,4.281779,3270.3,3269.3,3.05875]
[1722456530621,4.281779,3270.3,3269.1,3.05887]
[1722456530822,2.4878,3270.1,3268.1,7.29]
[1722456531023,2.4878,3269.2,3267.9,3.06004]
[1722456531225,2.4878,3269.2,3268.1,3.05982]
[1722456531562,5.4878,3269.2,3268.2,3.05978]
[1722456531720,0.55,3269.1,3267.9,3.06003]
[1722456531916,0.30378,3269.0,3268.3,3.05968]
[1722456532119,0.30378,3269.0,3267.7,2.3614]
[1722456532120,2.4878,3269.2,3268.4,3.05958]
[1722456532437,2.4878,3269.2,3268.1,3.05985]
[1722456532675,2.4878,3269.2,3268.2,3.05977]
[1722456532834,2.4878,3269.2,3268.3,3.12085749]
[1722456533148,3.0,3269.4,3268.5,3.0595]
[1722456533480,3.0,3269.4,3268.7,3.05926]
[1722456533975,2.4878,3269.7,3268.7,3.05926]
[1722456533976,2.4878,3269.7,3268.8,3.05921]
[1722456534177,2.4878,3269.7,3268.9,3.05912]
[1722456534354,2.4878,3269.7,3268.9,0.06117383]
[1722456534677,2.4878,3269.7,3269.0,3.05895]
[1722456534880,2.4878,3269.7,3268.0,3.05989]
[1722456534881,2.4878,3269.7,3268.5,3.05942]
[1722456535050,0.554609,3269.6,3268.6,3.05939]
[1722456535251,0.554609,3269.6,3268.5,3.05942]
[1722456535585,2.4878,3269.7,3268.6,3.05935]
[1722456535735,2.4878,3269.7,3268.5,3.05942]
[1722456536074,2.4878,3269.7,3268.2,3.05971]
[1722456536075,3.05876,3269.3,3268.2,3.05978]
[1722456536241,3.05857,3269.5,3268.4,3.05954]
[1722456536438,3.969517,3269.4,3268.2,3.05971]
[1722456536839,3.05876,3269.3,3268.0,3.05995]
[1722456537071,0.910857,3269.4,3267.8,3.06015]
[1722456537072,3.059,3269.1,3267.8,3.06015]
[1722456537273,3.059,3269.1,3268.0,3.05997]
[1722456537485,3.0588,3269.3,3268.1,3.05985]
[1722456537696,0.55,3269.2,3268.2,3.05971]
[1722456538965,0.55,3269.2,3268.0,3.05993]
[1722456539262,0.55,3269.2,3268.1,3.05982]
[1722456539464,0.55,3269.2,3268.2,6.11944]
[1722456539786,3.55,3269.3,3268.3,3.05969]
[1722456539973,4.210874,3269.3,3268.3,3.05969]
[1722456540862,4.210874,3269.3,3267.6,3.06]
[1722456541067,0.14818627,3269.9,3267.7,0.0611862]
[1722456541068,3.05822,3269.9,3267.7,0.0611862]
[1722456541369,3.05871,3269.4,3267.8,4.945]
[1722456541593,3.05895,3269.1,3268.0,3.05996]
[1722456541804,3.05895,3269.1,3267.6,3.06]
[1722456541805,3.05867,3269.4,3268.1,3.05982]
[1722456541976,2.4878,3269.7,3268.7,3.05926]
[1722456542274,2.4878,3269.7,3268.2,3.05975]
[1722456542275,2.73658,3269.7,3268.8,0.06117749]
[1722456542478,2.73658,3269.7,3268.8,3.05919]
[1722456542678,2.4878,3269.7,3268.7,3.05924]
[1722456542924,5.4878,3269.7,3268.5,3.05943]
[1722456543062,5.4878,3269.7,3268.7,3.05926]
[1722456543262,3.0,3269.6,3268.5,6.1189]
[1722456543566,3.0,3269.6,3268.6,3.0594]
[1722456543918,3.05862,3269.5,3268.3,3.05968]
[1722456544078,3.60862,3269.5,3268.3,3.05968]
[1722456544276,3.0,3269.4,3268.3,3.05968]
[1722456544476,6.05868,3269.4,3268.3,3.05963]
[1722456544660,3.05902,3269.1,3267.9,3.05999]
[1722456544861,0.305902,3269.0,3268.0,3.05991]
[1722456545104,3.0,3269.2,3268.4,3.05953]
[1722456545276,3.0,3269.4,3268.4,3.05952]
[1722456545476,0.55,3269.5,3268.5,0.37325922]
[1722456545477,3.0,3269.5,3268.5,0.37325922]
[1722456545677,7.47,3269.6,3268.5,0.06118838]
[1722456545888,7.47,3269.6,3268.8,3.05917]
[1722456546091,2.4878,3269.7,3268.8,3.05915]
[1722456546369,2.4878,3269.7,3269.0,3.05903]
[1722456547712,2.4878,3269.7,3268.8,3.05915]
[1722456547871,2.4878,3269.7,3268.8,3.671002]
[1722456548184,2.4878,3269.7,3268.9,0.06117383]
[1722456548368,2.4878,3269.7,3268.9,3.05908]
[1722456548590,2.4878,3269.7,3268.8,0.611852]
[1722456548921,2.4878,3269.7,3268.7,3.05927]
[1722456549107,5.54619,3269.7,3268.6,3.05936]
[1722456549307,5.54619,3269.7,3268.3,3.05964]
[1722456549308,3.05866,3269.4,3268.3,3.05962]
[1722456549519,3.55,3269.6,3268.5,3.05943]
[1722456549686,0.60378,3269.5,3268.5,3.05945]
[1722456549886,0.60378,3269.5,3268.3,3.05962]
[1722456550067,0.55,3269.4,3268.5,3.05948]
[1722456550291,0.55,3269.4,3268.3,6.11924]
[1722456550515,0.55,3269.4,3268.0,7.29]
[1722456550516,3.60866,3269.4,3268.1,3.05985]
[1722456550843,3.05891,3269.2,3268.1,4.700837]
[1722456551136,3.421244,3269.3,3267.6,2.2791]
[1722456551137,3.421244,3269.3,3268.3,3.05963]
[1722456551344,3.0,3269.3,3268.3,3.05961]
[1722456551629,3.0,3269.3,3267.9,3.05999]
[1722456551630,3.0588,3269.3,3267.9,3.05999]
[1722456551786,3.55,3269.2,3268.3,3.05968]
[1722456551993,3.55,3269.4,3268.5,3.0595]
[1722456552311,2.4878,3269.7,3268.8,3.05921]
[1722456552486,5.4878,3269.7,3268.9,0.305921]
[1722456552690,2.4878,3269.7,3268.9,3.364991]
[1722456553235,2.4878,3269.7,3269.0,3.05903]
[1722456553409,2.4878,3269.7,3269.0,3.05897]
[1722456553728,2.4878,3269.7,3268.9,3.365031]
[1722456554028,2.4878,3269.7,3268.9,3.364991]
[1722456554234,2.4878,3269.7,3268.9,0.305921]
[1722456554418,5.54626,3269.7,3268.5,3.05944]
[1722456554731,3.0,3269.6,3268.7,3.05926]
[1722456554906,2.4878,3269.7,3268.7,3.05926]
[1722456555103,5.54619,3269.7,3268.7,0.305926]
[1722456555309,3.0,3269.6,3268.6,3.05935]
[1722456555524,3.0,3269.6,3268.6,3.05934]
[1722456555846,3.05881,3269.3,3268.1,3.05982]
[1722456556055,3.05872,3269.4,3268.1,3.0598]
[1722456556338,3.0,3269.3,3268.3,3.05964]
[1722456556494,0.660853,3269.4,3268.6,3.05934]
[1722456556695,3.55,3269.5,3268.6,3.05934]
[1722456556696,0.55,3269.5,3268.6,3.05934]
[1722456556948,3.0,3269.4,3268.7,3.12047234]
[1722456557101,3.0,3269.6,3268.8,0.06117762]
[1722456557648,2.4878,3269.7,3268.7,3.05924]
[1722456557800,5.4878,3269.7,3268.7,3.05926]
[1722456558137,5.4878,3269.7,3268.5,3.05946]
[1722456558138,9.400795,3269.7,3268.5,3.05943]
[1722456558345,6.342415,3269.7,3268.5,3.05943]
[1722456558512,6.342415,3269.7,3268.7,3.0593]
[1722456558922,6.342415,3269.7,3268.9,3.05912]
[1722456559111,5.4878,3269.7,3268.9,3.05912]
[1722456559299,3.0,3269.6,3268.9,3.05912]
[1722456559503,2.4878,3269.7,3268.9,3.05912]
[1722456560051,11.2603519,3270.2,3269.0,0.06117677]
[1722456560198,11.2603519,3270.2,3269.4,3.05865]
[1722456560399,11.2603519,3270.2,3269.4,3.11981798]
[1722456560706,7.47,3270.2,3269.4,6.17839798]
[1722456560895,7.47,3270.2,3269.5,3.05855]
[1722456561092,2.3094,3270.7,3269.5,0.06116539]
[1722456561328,2.3094,3270.7,3269.5,3.05851]
[1722456561531,2.3094,3270.7,3269.7,3.05838]
[1722456561736,0.97794,3270.6,3269.7,3.05838]
[1722456561938,2.3094,3270.7,3269.8,3.11939072]
[1722456562233,2.3094,3270.7,3269.9,3.05814]
[1722456562536,2.3094,3270.7,3269.9,0.06115889]
[1722456563306,2.3094,3270.7,3269.9,3.11928889]
[1722456563506,2.3094,3270.7,3269.9,0.06115889]
[1722456563721,2.54034,3270.7,3269.9,3.05818]
[1722456563919,2.54034,3270.7,3269.9,3.1193368]
[1722456564322,3.0,3270.6,3269.9,3.1193368]
[1722456564525,3.0,3270.6,3269.9,0.0611568]
[1722456564840,3.0,3270.6,3269.2,3.05877]
[1722456565013,3.05792,3270.2,3268.8,3.05918]
[1722456565340,3.05792,3270.2,3269.0,3.05903]
[1722456565341,6.05808,3270.1,3269.0,3.05903]
[1722456565508,0.55,3270.0,3269.0,3.05903]
[1722456566137,3.0,3270.1,3269.1,0.06117294]
[1722456566321,3.05787,3270.3,3269.0,3.05899]
[1722456566523,3.605787,3270.2,3269.0,3.364859]
[1722456566708,7.213787,3270.2,3269.1,3.05892]
[1722456566916,4.155787,3270.2,3269.2,3.11994903]
[1722456567240,3.55,3270.2,3269.3,6.17859803]
[1722456567537,2.3094,3270.7,3269.6,3.0584]
[1722456567741,2.3094,3270.7,3269.9,3.05819]
[1722456568050,2.3094,3270.7,3269.6,3.05842]
[1722456568209,2.3094,3270.7,3269.8,3.05824]
[1722456568746,2.54034,3270.7,3269.7,0.06115814]
[1722456568925,3.05763,3270.5,3269.4,3.05861]
[1722456569112,0.55,3270.4,3269.4,3.05861]
[1722456569317,3.55,3270.5,3269.5,0.06116414]
[1722456569517,3.55,3270.5,3269.5,0.31197641]
[1722456569706,3.05775,3270.4,3269.0,3.364889]
[1722456570013,3.55,3270.5,3269.1,3.05889]
[1722456570014,3.05783,3270.3,3269.1,3.05889]
[1722456570346,3.05811,3270.0,3269.0,0.305899]
[1722456570512,3.0,3270.2,3268.7,3.05927]
[1722456570513,5.35707,3269.8,3268.7,3.05927]
[1722456570843,2.2987,3269.8,3268.7,3.05928]
[1722456571046,2.2987,3269.8,3268.8,3.05922]
[1722456571205,2.2987,3269.8,3268.6,3.05934]
[1722456571400,3.05838,3269.7,3268.5,3.05947]
[1722456571739,0.835708,3269.6,3268.6,3.05939]
[1722456571942,3.835708,3269.6,3268.6,3.05939]
[1722456572101,3.835708,3269.6,3268.5,0.305947]
[1722456572102,0.55,3269.5,3268.5,3.05945]
[1722456572305,3.55,3269.5,3268.6,3.05941]
[1722456572855,3.55,3269.5,3268.4,3.05951]
[1722456573018,3.8030788,3269.4,3268.2,6.11945]
[1722456573223,3.8030788,3269.4,3268.1,0.30598]
[1722456573224,3.0,3269.3,3268.1,0.30598]
[1722456573470,3.0,3269.3,3267.8,3.06011]
[1722456573471,5.44804,3268.9,3267.8,3.06011]
[1722456573752,2.3889,3268.9,3267.8,3.06011]
[1722456573977,2.3889,3268.9,3268.0,3.05992]
[1722456574121,2.3889,3268.9,3268.0,3.671923]
[1722456574456,2.3889,3268.9,3268.1,3.05987]
[1722456574615,2.3889,3268.9,3268.2,3.05978]
[1722456574819,2.3889,3268.9,3268.3,3.05968]
[1722456575311,2.3889,3268.9,3268.0,3.671923]
[1722456575656,2.3889,3268.9,3268.2,3.05973]
[1722456576153,2.3889,3268.9,3268.0,3.05989]
[1722456576962,3.0,3269.2,3268.1,3.05983]
[1722456577268,3.05891,3269.2,3268.0,3.05991]
[1722456577409,3.605891,3269.1,3267.8,3.0601]
[1722456577602,3.05914,3268.9,3267.8,3.0601]
[1722456578522,3.0,3269.3,3267.4,3.06046]
[1722456578523,3.05944,3268.6,3267.4,3.06046]
[1722456578712,3.05965,3268.4,3267.3,3.06061]
[1722456578912,3.0,3268.5,3267.4,3.366581]
[1722456579219,3.0,3268.5,3267.5,3.06044]
[1722456579421,3.0,3268.5,3267.4,0.306061]
[1722456579422,6.05951,3268.5,3267.4,0.306061]
[1722456579628,3.0596,3268.4,3267.4,0.306061]
[1722456579811,6.05955,3268.5,3267.5,0.6427181]
[1722456580327,3.0,3268.5,3267.4,3.06047]
[1722456580522,5.3408,3268.6,3267.6,3.12147806]
[1722456581173,9.8319,3269.1,3268.0,3.05989]
[1722456581457,9.8319,3269.1,3268.2,3.05977]
[1722456581665,5.42042,3269.6,3268.4,3.05954]
[1722456581846,3.05862,3269.5,3268.5,0.06118138]
[1722456582349,5.42042,3269.6,3268.3,0.31209582]
[1722456582350,3.05867,3269.4,3268.3,0.31209582]
[1722456582660,3.05913,3268.9,3267.9,3.06001]
[1722456582958,3.05924,3268.8,3267.7,3.06018]
[1722456583158,3.0591,3269.0,3267.9,3.06006]
[1722456583362,3.0591,3269.0,3268.0,0.306006]
[1722456583363,6.05915,3268.9,3268.0,0.306006]
[1722456583577,3.05931,3268.8,3267.7,3.0602]
[1722456583756,3.05931,3268.8,3267.7,3.06018]
[1722456584075,3.05931,3268.8,3267.8,3.06014]
[1722456585284,3.05931,3268.8,3267.7,3.06023]
[1722456586168,3.0,3268.9,3267.5,2.3829]
[1722456586349,6.11896,3268.6,3267.6,0.544342]
[1722456586550,3.05947,3268.6,3267.6,0.544342]
[1722456587070,3.05952,3268.5,3267.6,0.544342]
[1722456587629,3.05966,3268.4,3267.0,12.62566]
[1722456587832,3.05988,3268.2,3267.0,10.35088]
[1722456588045,3.0,3268.1,3267.0,3.06088]
[1722456588436,3.05998,3268.0,3266.9,3.06098]
[1722456588634,3.0,3268.1,3267.0,3.0609]
[1722456588862,3.05998,3268.0,3267.1,0.30609]
[1722456589073,6.06007,3267.9,3266.8,3.06103]
[1722456589284,3.06007,3267.9,3266.8,3.06103]
[1722456589556,3.06017,3267.8,3266.7,3.06118]
[1722456589881,3.0,3268.1,3266.6,2.2751]
[1722456590036,6.05984,3268.2,3267.2,3.06071]
[1722456590241,3.605984,3268.2,3267.3,0.06120536]
[1722456590479,3.605984,3268.2,3267.6,3.06034]
[1722456590480,3.0,3268.2,3267.6,3.06034]
[1722456590686,3.0,3268.6,3267.7,0.0611961]
[1722456590838,3.0,3268.7,3267.8,3.06016]
[1722456591043,3.0,3269.0,3267.8,3.12135605]
[1722456591243,2.3689,3269.2,3267.8,0.06119605]
[1722456591470,3.05932,3268.7,3267.8,0.06119605]
[1722456591668,0.23689,3269.1,3267.1,5.45696]
[1722456591873,3.0596,3268.4,3267.3,3.06058]
[1722456592250,3.05984,3268.2,3267.1,5.45696]
[1722456592594,3.05988,3268.1,3267.1,6.002656]
[1722456592786,3.05988,3268.1,3267.1,2.941896]
[1722456593161,0.305984,3268.2,3267.1,2.941896]
[1722456593364,3.05993,3268.1,3267.1,6.002706]
[1722456593568,3.05993,3268.1,3267.1,2.941896]
[1722456593774,3.0,3268.2,3267.1,2.941896]
[1722456593970,3.0,3268.2,3267.2,3.06066]
[1722456594179,2.4685,3268.3,3267.4,3.06048]
[1722456594556,3.0,3268.4,3267.5,3.06042]
[1722456594793,3.05957,3268.5,3267.4,3.06048]
[1722456594991,3.0,3268.4,3267.4,3.06048]
[1722456595194,3.0,3268.4,3267.5,3.366478]
[1722456595397,3.0,3268.6,3267.5,3.4276811]
[1722456595699,2.2729,3268.7,3267.7,3.06023]
[1722456595859,6.05909,3269.0,3267.8,0.06119372]
[1722456596195,3.0,3269.0,3267.8,0.06119372]
[1722456596358,2.2729,3269.2,3267.9,2.4953]
[1722456596558,3.05852,3269.6,3268.4,3.05954]
[1722456596798,3.05852,3269.6,3268.5,3.05949]
[1722456596954,2.2729,3269.7,3268.5,0.06118437]
[1722456597159,2.2729,3269.7,3268.0,0.25564937]
[1722456597160,2.2729,3269.7,3268.0,3.31553937]
[1722456597370,2.2729,3269.7,3268.0,0.25564937]
[1722456597604,3.05886,3269.2,3268.1,0.58109794]
[1722456597960,3.05912,3269.0,3268.0,0.25564937]
[1722456599459,3.0,3269.3,3267.6,3.0603]
[1722456599659,6.11816,3269.0,3267.8,3.06015]
[1722456599880,3.0,3268.9,3267.6,3.0603]
[1722456600107,3.05908,3269.0,3267.6,3.0603]
[1722456600377,3.0,3268.9,3267.8,3.06011]
[1722456600530,3.05933,3268.7,3267.6,3.0603]
[1722456600831,0.605908,3268.8,3267.4,5.55581]
[1722456600832,3.05952,3268.5,3267.4,5.55581]
[1722456600998,2.2729,3268.9,3267.8,3.06009]
[1722456600999,3.55,3268.8,3267.8,3.06009]
[1722456601187,6.05923,3268.8,3267.7,3.0602]
[1722456601387,6.05923,3268.8,3267.4,5.55578]
[1722456601587,3.892583,3268.7,3267.6,3.06033]
[1722456601917,3.0,3268.6,3267.6,3.06033]
[1722456602084,3.05958,3268.5,3267.4,5.55577]
[1722456602290,3.0,3268.4,3267.4,5.55577]
[1722456602590,3.0,3268.4,3267.5,3.06041]
[1722456602790,3.0,3268.5,3267.6,0.61677036]
[1722456603012,6.05941,3268.6,3267.6,0.555571]
[1722456603214,6.05941,3268.6,3267.5,3.06037]
[1722456603215,3.05981,3268.2,3266.9,5.50596]
[1722456603402,3.06002,3268.0,3266.9,5.50596]
[1722456603705,3.06001,3268.0,3266.8,3.06109]
[1722456603895,3.0,3267.9,3266.8,3.06104]
[1722456604098,3.606001,3267.9,3266.9,3.06098]
[1722456604427,3.606001,3267.9,3266.8,0.612228]
[1722456604632,3.06021,3267.8,3266.8,0.612228]
[1722456604930,3.0,3267.7,3266.8,0.612228]
[1722456605435,3.0,3267.8,3266.8,0.612228]
[1722456606047,3.0,3267.8,3266.9,3.06099]
[1722456606192,6.05999,3268.0,3266.8,0.612228]
[1722456606394,3.666129,3267.9,3266.8,3.673308]
[1722456606605,3.06038,3267.6,3266.5,3.06131]
[1722456606792,3.06035,3267.6,3266.1,2.4751]
[1722456607015,3.06035,3267.6,3266.4,3.06146]
[1722456607016,6.0605,3267.5,3266.4,3.06146]
[1722456607557,6.0605,3267.5,3266.5,3.06132]
[1722456607558,3.0,3267.5,3266.5,3.06132]
[1722456607713,3.06046,3267.5,3266.3,3.06149]
[1722456607911,3.06046,3267.5,3266.4,3.67375]
[1722456608096,3.0,3267.6,3266.6,3.06127]
[1722456608297,6.06026,3267.7,3266.6,3.12248814]
[1722456608552,6.06026,3267.7,3266.4,3.67375]
[1722456608553,3.0,3267.7,3266.4,0.61231]
[1722456608693,3.0,3267.7,3265.6,10.35]
[1722456608694,3.0609,3267.1,3265.6,10.35]
[1722456608899,3.06092,3267.0,3265.9,3.06187]
[1722456609204,3.06058,3267.4,3266.1,3.06169]
[1722456609410,3.61063,3267.3,3266.2,3.06164]
[1722456609624,6.06073,3267.2,3266.0,3.06178]
[1722456609819,0.967136,3267.1,3266.1,3.06173]
[1722456610137,0.967136,3267.1,3266.2,3.06166]
[1722456610349,3.06078,3267.2,3266.1,3.06175]
[1722456610538,3.0,3267.1,3266.1,3.06175]
[1722456610856,3.0,3267.1,3266.2,3.06165]
[1722456611343,6.06073,3267.2,3266.2,3.06165]
[1722456611779,3.0,3267.2,3266.1,3.06168]
[1722456612079,3.0,3267.2,3266.3,3.0615]
[1722456612368,6.06053,3267.5,3266.3,3.0615]
[1722456612585,2.6442,3267.6,3266.2,0.3367858]
[1722456612586,2.3442,3267.6,3266.4,0.06122035]
[1722456613081,2.2521,3268.0,3266.4,0.06122035]
[1722456613240,2.783302,3268.0,3267.0,3.06089]
[1722456613830,2.783302,3268.0,3267.1,0.06121161]
[1722456614172,3.05954,3268.5,3266.5,2.4468]
[1722456614173,2.2521,3268.5,3266.8,1.5]
[1722456614373,7.47,3269.0,3267.7,3.06019]
[1722456614671,3.05919,3268.9,3267.7,6.12036]
[1722456614891,9.7221,3269.0,3268.1,3.05987]
[1722456615168,9.7221,3269.0,3268.0,0.06119375]
[1722456615373,9.7221,3269.0,3268.1,3.43317945]
[1722456615672,9.7221,3269.0,3268.1,0.31212138]
[1722456615673,12.78119,3269.0,3268.1,0.31212138]
[1722456615884,12.78119,3269.0,3267.7,8.54779]
[1722456616092,3.05925,3268.8,3267.7,3.06018]
[1722456616385,9.7221,3269.0,3267.9,3.06]
[1722456616386,12.78115,3269.0,3267.9,3.06]
[1722456616538,3.05913,3268.9,3267.7,3.06018]
[1722456616882,4.643158,3268.9,3267.8,3.366158]
[1722456617270,3.05933,3268.7,3267.8,0.306018]
[1722456617593,3.05942,3268.6,3267.5,3.06043]
[1722456617734,3.05942,3268.6,3267.4,3.06049]
[1722456617735,3.0,3268.5,3267.4,3.06049]
[1722456618075,3.0,3268.5,3267.3,3.06059]
[1722456618486,3.0,3268.5,3267.3,3.06055]
[1722456618775,3.0,3268.5,3266.7,3.445]
[1722456618776,2.3805,3268.3,3266.8,3.06103]
[1722456618976,0.29305,3268.2,3266.9,0.550863]
[1722456619128,0.29305,3268.2,3267.5,3.06035]
[1722456619129,3.0,3268.2,3267.5,3.06035]
[1722456619333,3.0,3268.4,3267.3,3.06056]
[1722456619642,6.05941,3268.6,3267.4,3.0605]
[1722456619867,6.60941,3268.6,3267.4,3.12170044]
[1722456620375,3.55,3268.6,3267.6,3.06034]
[1722456620580,1.448979,3268.6,3267.6,3.06032]
[1722456620875,4.508439,3268.6,3267.4,3.06049]
[1722456621183,3.05963,3268.4,3266.9,0.550863]
[1722456621407,3.0,3268.5,3266.4,3.06142]
[1722456621408,3.06018,3267.8,3266.4,3.06142]
[1722456621557,3.06011,3267.9,3266.4,3.06141]
[1722456621876,0.55,3267.7,3266.6,3.06121]
[1722456622092,3.856011,3267.8,3266.5,0.306141]
[1722456622232,0.306011,3267.8,3266.9,3.06093]
[1722456622432,0.306011,3267.8,3267.0,0.06121101]
[1722456622631,0.306011,3267.8,3267.1,3.06081]
[1722456622862,0.306011,3267.8,3267.0,0.06121101]
[1722456623086,0.306011,3267.8,3267.0,0.06121114]
[1722456623597,3.0,3268.0,3267.4,3.06053]
[1722456623811,2.3137,3268.2,3267.1,0.31221411]
[1722456623812,5.37355,3268.2,3267.1,0.31221411]
[1722456624007,5.37355,3268.2,3267.0,3.0609]
[1722456624242,3.06002,3268.0,3266.8,3.06101]
[1722456624517,3.06002,3268.0,3266.9,3.06095]
[1722456624814,3.06002,3268.0,3266.7,3.06113]
[1722456624953,3.06026,3267.7,3266.6,3.06124]
[1722456625300,3.0,3267.6,3266.1,2.4799]
[1722456625534,3.06099,3267.0,3265.8,3.06196]
[1722456625804,3.06077,3267.2,3265.7,3.06205]
[1722456625954,3.06077,3267.2,3265.8,0.554195]
[1722456625955,3.061,3267.0,3265.8,0.554195]
[1722456626303,6.06109,3266.9,3265.8,0.554195]
[1722456626449,3.0,3266.9,3265.8,0.554195]
[1722456626652,5.3165,3267.0,3265.8,0.554195]
[1722456626855,3.06106,3266.9,3265.8,0.554195]
[1722456627048,3.06111,3266.8,3265.9,0.3616315]
[1722456627352,5.37747,3267.0,3265.9,3.4235515]
[1722456628168,2.3165,3267.0,3266.1,3.06173]
[1722456628498,2.3165,3267.0,3266.0,3.06177]
[1722456628682,2.3165,3267.0,3265.9,3.4235315]
[1722456628683,2.3165,3267.0,3266.1,3.06171]
[1722456628887,2.3165,3267.0,3266.0,3.06184]
[1722456628888,2.5787577,3267.0,3266.0,3.06184]
[1722456629095,2.5787577,3267.0,3266.1,3.06173]
[1722456629291,5.40563,3267.4,3266.2,3.06164]
[1722456629456,3.06078,3267.2,3266.0,3.06184]
[1722456629655,3.06097,3267.0,3265.9,0.3616315]
[1722456629856,3.06097,3267.0,3265.8,3.616155]
[1722456629857,3.06111,3266.8,3265.8,0.554195]
[1722456630053,3.06116,3266.8,3265.6,5.5421]
[1722456630357,3.06144,3266.5,3265.5,0.01775795]
[1722456630597,3.06148,3266.4,3265.5,0.01775795]
[1722456631107,2.2501,3266.6,3265.5,0.01775795]
[1722456631108,0.55,3266.3,3265.5,0.01775795]
[1722456631313,3.06167,3266.2,3265.5,0.01775795]
[1722456631598,3.728991,3266.2,3265.5,0.01775795]
[1722456631837,0.667321,3266.2,3265.5,0.01775795]
[1722456632390,3.729051,3266.2,3265.5,0.01775795]
[1722456632683,3.728991,3266.2,3265.5,0.01775795]
[1722456633561,0.55,3266.1,3265.5,0.01775795]
[1722456633913,0.4279021,3266.0,3265.5,0.01775795]
[1722456634058,3.55,3266.5,3265.5,3.08000795]
[1722456634457,6.61139,3266.5,3265.5,0.01775795]
[1722456634670,3.55,3266.5,3265.5,3.08000795]
[1722456634865,3.55,3266.5,3265.5,0.6381288]
[1722456635079,7.47,3266.9,3265.6,0.06124058]
[1722456635282,7.47,3267.3,3265.9,3.0619]
[1722456635493,7.47,3267.3,3265.5,3.0352288]
[1722456635494,2.4173,3267.6,3266.8,3.06104]
[1722456635725,10.52896,3269.1,3266.6,3.06121]
[1722456635726,3.06007,3267.9,3266.6,3.06121]
[1722456636006,0.553077,3267.8,3266.6,0.839264]
[1722456636159,3.06036,3267.6,3266.4,5.3314]
[1722456636507,2.4707,3268.0,3266.6,3.06124]
[1722456636713,2.4707,3268.0,3266.8,3.06103]
[1722456636874,5.53067,3268.0,3266.9,3.06099]
[1722456637224,5.53067,3268.0,3267.0,0.06120997]
[1722456637506,5.53067,3268.0,3266.7,3.06119]
[1722456637507,3.06024,3267.8,3266.4,2.27]
[1722456637856,3.329746,3268.0,3266.4,2.27]
[1722456638128,3.06042,3267.6,3266.4,2.27]
[1722456638254,3.06033,3267.7,3266.4,5.33141]
[1722456638463,3.06062,3267.4,3266.4,2.27]
[1722456638660,3.06062,3267.4,3266.2,3.06164]
[1722456638886,3.06074,3267.2,3266.0,3.06179]
[1722456639166,3.06074,3267.2,3266.1,0.83947757]
[1722456639570,9.12081,3267.6,3266.3,3.06149]
[1722456639797,9.12081,3267.6,3266.2,3.06159]
[1722456639798,3.55,3267.5,3266.2,3.06159]
[1722456640118,6.12122,3267.4,3266.2,3.06159]
[1722456640270,3.06072,3267.2,3266.1,0.83947757]
[1722456640471,4.027851,3267.2,3266.1,0.83947757]
[1722456640896,3.06098,3267.0,3265.9,2.27107574]
[1722456641210,3.06098,3267.0,3265.9,0.01747574]
[1722456641433,3.06111,3266.8,3265.9,0.01747574]
[1722456641568,3.06098,3267.0,3265.9,0.01747574]
[1722456641765,3.06111,3266.8,3265.9,0.01747574]
[1722456641989,3.0,3266.7,3265.9,0.01747574]
[1722456642493,6.06121,3266.7,3265.9,0.01747574]
[1722456642690,3.06135,3266.6,3265.9,0.01747574]
[1722456643014,3.0,3266.5,3265.9,0.01747574]
[1722456643334,3.06135,3266.6,3265.9,0.01747574]